bitfinex/quotes_SOLUSD_20260117
["timestamp","ask_amount","ask_price","bid_price","bid_amount"]
[1768657832736,0.1,143.95,143.92,1.98040833]
[1768657836043,0.1,143.95,143.93,6.94782185]
[1768657838952,0.1,143.95,143.93,1.98040833]
[1768657839547,2.10466391,143.97,143.93,1.98040833]
[1768657840744,2.10466391,143.97,143.94,6.94733916]
[1768657842445,2.10466391,143.97,143.93,1.98040833]
[1768657842638,2.10466391,143.95,143.92,8.92864939]
[1768657846150,6.94608106,143.97,143.93,1.98040833]
[1768657846342,7.29592098,143.96,143.93,1.98040833]
[1768657846544,2.10466391,143.96,143.93,1.98040833]
[1768657848859,2.10466391,143.95,143.89,1.98040833]
[1768657852254,2.10466391,143.95,143.91,1.98538982]
[1768657856457,2.10466391,143.95,143.92,8.93369443]
[1768657858444,2.10466391,143.95,143.91,1.98538982]
[1768657861363,2.08089726,143.94,143.91,6.94867592]
[1768657861654,2.08089726,143.94,143.9,6.94919146]
[1768657861861,2.08089726,143.94,143.89,6.94941174]
[1768657862049,2.08089726,143.93,143.88,8.93543007]
[1768657862236,2.08089726,143.93,143.88,6.95004025]
[1768657862966,2.08089726,143.93,143.88,8.93543007]
[1768657863458,9.02907796,143.93,143.88,8.93543007]
[1768657863664,2.08089726,143.92,143.88,8.93543007]
[1768657863845,2.02089727,143.92,143.88,8.93543007]
[1768657864359,2.02089727,143.92,143.88,6.95004025]
[1768657864549,2.02089727,143.92,143.87,8.93595699]
[1768657865958,8.96939661,143.92,143.87,8.93595699]
[1768657866264,2.08089726,143.91,143.87,8.93595699]
[1768657869575,2.02089727,143.91,143.87,8.93595699]
[1768657869870,1.96089728,143.91,143.87,8.93595699]
[1768657870670,1.96089728,143.91,143.84,34.76084538]
[1768657870881,1.96089728,143.91,143.85,1.98538982]
[1768657871469,6.94880541,143.91,143.85,1.98538982]
[1768657871968,2.08089726,143.9,143.85,1.98538982]
[1768657872172,2.02089727,143.9,143.86,1.98538982]
[1768657872874,2.02089727,143.9,143.87,6.95071939]
[1768657873646,74.21934472,143.93,143.88,1.98538982]
[1768657874048,2.08089726,143.92,143.88,1.98538982]
[1768657874974,2.08089726,143.92,143.89,8.9351431]
[1768657875784,74.21934472,143.93,143.9,1.98538982]
[1768657876079,76.30024198,143.93,143.9,1.98538982]
[1768657876378,2.08089726,143.92,143.9,1.98538982]
[1768657877461,2.08089726,143.92,143.89,8.9351431]
[1768657877660,2.08089726,143.93,143.9,8.93460748]
[1768657878980,17.30089726,143.93,143.9,8.93460748]
[1768657880078,2.08089726,143.92,143.9,8.93460748]
[1768657881378,2.08089726,143.92,143.89,6.94956154]
[1768657881584,9.02934296,143.92,143.88,8.93552044]
[1768657885082,9.02934296,143.92,143.89,2.13908388]
[1768657889187,2.13258893,143.91,143.87,2.13908388]
[1768657889390,2.07258894,143.91,143.87,2.13908388]
[1768657890770,2.07258894,143.91,143.88,2.13908388]
[1768657892499,9.02151702,143.91,143.88,2.13908388]
[1768657893466,2.11774707,143.9,143.87,8.93903076]
[1768657893787,2.11774707,143.9,143.86,8.93971672]
[1768657894158,15.22,143.9,143.86,8.93971672]
[1768657894365,2.11774707,143.89,143.86,8.93971672]
[1768657894587,2.05774708,143.89,143.86,8.93971672]
[1768657896006,2.05774708,143.89,143.86,6.9510733]
[1768657896294,2.05774708,143.89,143.85,8.94013981]
[1768657896791,8.94753373,143.89,143.86,1.98864342]
[1768657897372,8.88753374,143.89,143.86,1.98864342]
[1768657898197,6.94978664,143.89,143.85,8.94013981]
[1768657899292,8.88935519,143.89,143.85,8.94013981]
[1768657901601,8.88935519,143.89,143.86,6.95118613]
[1768657903300,8.88935519,143.89,143.86,1.98864342]
[1768657905101,8.8293552,143.89,143.86,1.98864342]
[1768657912502,8.8293552,143.89,143.86,8.93979859]
[1768657912806,1.93956855,143.89,143.86,8.93979859]
[1768657923608,8.88976604,143.89,143.86,1.98864342]
[1768657924903,8.82976603,143.89,143.86,1.98864342]
[1768657925727,8.76976599,143.89,143.86,1.98864342]
[1768657925892,1.8195685,143.89,143.86,8.93980938]
[1768657926205,1.75956849,143.89,143.86,8.93980938]
[1768657928000,8.70933878,143.89,143.86,8.93980938]
[1768657928418,8.70933878,143.89,143.86,1.98864342]
[1768657931617,1.75956849,143.89,143.86,8.93980975]
[1768657932805,1.69956846,143.89,143.86,8.93980975]
[1768657935818,8.64937177,143.89,143.86,1.98864342]
[1768657938600,6.94980331,143.89,143.85,8.97044463]
[1768657938806,1.70853272,143.88,143.84,8.97071807]
[1768657939406,1.70853272,143.88,143.85,2.01883594]
[1768657939909,8.65904886,143.88,143.85,2.01883594]
[1768657940222,8.5990488,143.88,143.85,2.01883594]
[1768657940610,8.53904877,143.88,143.85,2.01883594]
[1768657943827,6.95051614,143.88,143.85,2.01883594]
[1768657944319,32.59376394,143.9,143.85,2.01883594]
[1768657944495,1.59096138,143.88,143.85,2.01883594]
[1768657944701,6.94975328,143.89,143.85,2.01883594]
[1768657944919,5.20710433,143.88,143.85,2.01883594]
[1768657945116,8.54071466,143.89,143.85,2.01883594]
[1768657945318,5.20704956,143.88,143.85,2.01883594]
[1768657945624,8.54162001,143.88,143.85,2.01883594]
[1768657952327,1.59446203,143.87,143.84,2.17723707]
[1768657952636,1.53446204,143.87,143.84,2.17723707]
[1768657953827,1.47446205,143.87,143.84,9.1291903]
[1768657954327,6.95027334,143.88,143.85,2.17723707]
[1768657954721,6.95027334,143.88,143.84,9.1291903]
[1768657956140,8.42583139,143.88,143.84,9.1291903]
[1768657959032,1.47664114,143.87,143.84,9.1291903]
[1768657959229,1.41664115,143.87,143.84,9.1291903]
[1768657960639,1.41664115,143.87,143.79,18.84686978]
[1768657960640,6.95094926,143.87,143.81,2.17723707]
[1768657960818,6.95094926,143.87,143.82,6.95279525]
[1768657960819,5.20511007,143.86,143.82,6.95279525]
[1768657961143,8.36908919,143.86,143.83,2.17723707]
[1768657961838,8.3090892,143.86,143.83,2.17723707]
[1768657964639,1.35893419,143.85,143.82,2.17723707]
[1768657964939,1.2989342,143.85,143.82,2.17723707]
[1768657965342,22.17128166,143.86,143.82,2.17723707]
[1768657966746,23.47116872,143.86,143.82,9.12999456]
[1768657966921,23.47116872,143.86,143.83,2.17723707]
[1768657972844,8.25116872,143.86,143.83,2.17723707]
[1768657973048,23.47116872,143.86,143.83,2.17723707]
[1768657976443,23.41116873,143.86,143.83,2.17723707]
[1768657978141,23.41116873,143.86,143.81,6.9534124]
[1768657978445,1.30652474,143.85,143.82,2.00033997]
[1768657981352,8.25826505,143.85,143.82,2.00033997]
[1768657984850,1.30652474,143.85,143.82,8.95343876]
[1768657989057,1.31098276,143.84,143.8,2.00033997]
[1768657989245,1.31140088,143.83,143.8,2.00033997]
[1768657989758,1.31140088,143.82,143.79,8.95477234]
[1768657990629,1.25140089,143.82,143.79,8.95477234]
[1768657991454,8.20477993,143.82,143.79,2.00033997]
[1768657993038,1.25262668,143.81,143.78,2.00033997]
[1768657993363,1.19262669,143.81,143.78,2.00033997]
[1768657994063,6.95337904,143.82,143.78,2.00033997]
[1768657994640,24.3362187,143.82,143.78,2.00033997]
[1768657995241,1.19381072,143.81,143.78,2.00033997]
[1768657996457,8.14841082,143.8,143.77,2.20033997]
[1768657996862,23.36841082,143.8,143.77,2.20033997]
[1768657997458,1.19479937,143.79,143.77,0.2]
[1768658004746,1.13479938,143.79,143.77,0.2]
[1768658005643,22.17410292,143.8,143.77,0.2]
[1768658006853,23.31472404,143.8,143.77,2.30116397]
[1768658010353,8.09651007,143.81,143.78,2.10116397]
[1768658010549,15.22,143.81,143.78,2.10116397]
[1768658011462,15.16,143.81,143.78,6.95490091]
[1768658011771,15.1,143.81,143.79,2.10116397]
[1768658011964,67.27106517,143.82,143.79,2.10116397]
[1768658012669,22.17282352,143.83,143.79,2.10116397]
[1768658015382,15.22,143.83,143.8,2.19506613]
[1768658016069,16.3633432,143.84,143.8,2.19506613]
[1768658016566,23.31562993,143.84,143.81,2.19506613]
[1768658019074,22.17228673,143.84,143.81,2.19506613]
[1768658019450,15.22,143.84,143.82,2.19506613]
[1768658023170,67.27106517,143.85,143.83,2.19506613]
[1768658023355,22.17071939,143.87,143.83,2.19506613]
[1768658024556,23.32085534,143.87,143.83,2.19506613]
[1768658025158,23.32085534,143.87,143.83,2.16506614]
[1768658027276,8.10085534,143.87,143.84,2.19506613]
[1768658027580,23.32085534,143.87,143.84,2.19506613]
[1768658029577,23.32085534,143.87,143.84,2.16506615]
[1768658036493,23.32085534,143.87,143.84,2.13506616]
[1768658037306,22.17071939,143.87,143.82,6.95292841]
[1768658037486,1.24646833,143.86,143.82,6.95292841]
[1768658038698,8.19786336,143.86,143.83,2.07356024]
[1768658041705,1.24825068,143.85,143.81,2.07356024]
[1768658042197,8.20007571,143.86,143.81,2.07356024]
[1768658042498,15.22,143.85,143.81,2.07356024]
[1768658043279,15.22,143.85,143.82,6.95313586]
[1768658043481,15.22,143.85,143.83,2.07356024]
[1768658043694,15.22,143.85,143.83,2.04356024]
[1768658045404,8.20050077,143.86,143.83,2.04356024]
[1768658047276,8.20050077,143.86,143.83,2.01356025]
[1768658051210,22.17089572,143.87,143.84,2.07356024]
[1768658051403,5.19204627,143.86,143.84,2.04356025]
[1768658051599,22.17089572,143.87,143.84,2.04356025]
[1768658051804,5.19204201,143.86,143.84,2.04356025]
[1768658052003,23.51330844,143.87,143.84,2.04356025]
[1768658052307,5.19199904,143.86,143.84,2.04356025]
[1768658052493,23.51330844,143.87,143.84,2.04356025]
[1768658052695,5.19360169,143.86,143.84,2.04356025]
[1768658052896,23.51330844,143.87,143.84,2.04356025]
[1768658053096,5.19360045,143.86,143.84,2.04356025]
[1768658053330,23.51330844,143.87,143.84,2.04356025]
[1768658053492,5.19547129,143.86,143.84,2.04356025]
[1768658053704,23.51330844,143.87,143.84,2.04356025]
[1768658054013,5.19547253,143.86,143.84,2.04356025]
[1768658054312,23.51330844,143.87,143.84,2.01356029]
[1768658054514,5.19720443,143.86,143.84,2.01356029]
[1768658054698,23.51330844,143.87,143.84,2.01356029]
[1768658054900,5.19720443,143.86,143.84,2.01356029]
[1768658055209,22.17089572,143.87,143.84,2.01356029]
[1768658055513,5.19926847,143.86,143.84,2.01356029]
[1768658055713,22.17089572,143.87,143.84,2.01356029]
[1768658055889,5.19926545,143.86,143.84,2.01356029]
[1768658056083,23.54503455,143.87,143.84,2.01356029]
[1768658056285,5.19926972,143.86,143.84,2.01356029]
[1768658056502,23.54503455,143.87,143.84,2.01356029]
[1768658056700,5.20042683,143.86,143.84,2.01356029]
[1768658056911,23.54503455,143.87,143.84,2.01356029]
[1768658057189,5.20042807,143.86,143.84,2.01356029]
[1768658057387,23.54503455,143.87,143.84,2.01356029]
[1768658057606,5.20113484,143.86,143.84,2.01356029]
[1768658057798,23.54503455,143.87,143.84,2.01356029]
[1768658058116,5.20113484,143.86,143.84,2.01356029]
[1768658058321,23.54503455,143.87,143.84,2.01356029]
[1768658058521,5.2019426,143.86,143.84,2.01356029]
[1768658058707,23.54503455,143.87,143.84,2.01356029]
[1768658058898,5.20194136,143.86,143.84,2.01356029]
[1768658059198,23.54503455,143.87,143.84,2.01356029]
[1768658059401,5.20286449,143.86,143.84,2.01356029]
[1768658059601,5.20286449,143.85,143.84,2.01356029]
[1768658060619,5.20286449,143.85,143.84,1.9835603]
[1768658064122,5.20731338,143.85,143.84,1.9835603]
[1768658064798,6.95120755,143.86,143.84,1.9835603]
[1768658066806,15.22,143.87,143.85,2.09780966]
[1768658067125,74.22174648,143.88,143.85,2.09780966]
[1768658067297,5.20658931,143.87,143.85,2.09780966]
[1768658067501,74.22174648,143.88,143.85,2.09780966]
[1768658067699,5.20659545,143.87,143.85,2.06780967]
[1768658067929,74.22174648,143.88,143.85,2.06780967]
[1768658068120,5.20659421,143.87,143.85,2.06780967]
[1768658068422,74.22174648,143.88,143.85,2.06780967]
[1768658068624,5.20555472,143.87,143.85,2.06780967]
[1768658068830,67.27106517,143.88,143.85,6.95142318]
[1768658069732,67.27106517,143.88,143.86,2.09780966]
[1768658071107,22.16994569,143.89,143.86,2.09780966]
[1768658071829,1.44095589,143.9,143.87,2.09780966]
[1768658072029,5.20174321,143.89,143.87,2.09780966]
[1768658072233,1.44095589,143.9,143.87,2.09780966]
[1768658072406,5.20036873,143.89,143.87,2.09780966]
[1768658072606,1.44095589,143.9,143.87,2.09780966]
[1768658072922,5.20036748,143.89,143.87,2.09780966]
[1768658073214,1.44095589,143.9,143.87,2.09780966]
[1768658076730,1.44095589,143.9,143.87,9.04851571]
[1768658077134,90.88419289,143.91,143.88,2.06495504]
[1768658077339,5.19629861,143.9,143.88,2.06495504]
[1768658077634,90.88464201,143.91,143.88,2.06495504]
[1768658077835,5.19540078,143.9,143.88,2.06495504]
[1768658078013,90.88464201,143.91,143.88,2.06495504]
[1768658078215,5.1954038,143.9,143.88,2.06495504]
[1768658078424,90.88464201,143.91,143.88,2.06495504]
[1768658078622,5.19458433,143.9,143.88,2.06495504]
[1768658078821,90.88464201,143.91,143.88,2.06495504]
[1768658079036,5.19461756,143.9,143.88,2.06495504]
[1768658079236,90.88464201,143.91,143.88,2.06495504]
[1768658079537,5.19390726,143.9,143.88,2.06495504]
[1768658079727,90.88464201,143.91,143.88,2.06495504]
[1768658079937,5.1939085,143.9,143.88,2.06495504]
[1768658080114,90.88464201,143.91,143.88,2.06495504]
[1768658080434,5.19390726,143.9,143.88,2.06495504]
[1768658080639,90.88464201,143.91,143.88,2.06495504]
[1768658080843,5.19326037,143.9,143.88,2.06495504]
[1768658081018,90.88464201,143.91,143.88,2.03495504]
[1768658081321,5.19326037,143.9,143.88,2.03495504]
[1768658081620,90.88464201,143.91,143.88,2.03495504]
[1768658081917,5.19266911,143.9,143.88,2.03495504]
[1768658082118,90.88464201,143.91,143.88,2.03495504]
[1768658082738,5.19213219,143.9,143.88,2.03495504]
[1768658082938,90.88464201,143.91,143.88,2.03495504]
[1768658083141,5.19213343,143.9,143.88,2.03495504]
[1768658083438,90.88464201,143.91,143.88,2.03495504]
[1768658083644,5.19169474,143.9,143.88,2.03495504]
[1768658083820,90.88464201,143.91,143.88,2.03495504]
[1768658084144,5.19169474,143.9,143.88,2.03495504]
[1768658084318,90.88464201,143.91,143.88,2.03495504]
[1768658084638,5.19130868,143.9,143.88,2.03495504]
[1768658084843,90.88464201,143.91,143.88,2.03495504]
[1768658085028,5.19130992,143.9,143.88,2.03495504]
[1768658085234,90.88464201,143.91,143.88,2.03495504]
[1768658085451,5.19112097,143.9,143.88,2.03495504]
[1768658085647,90.88464201,143.91,143.88,2.03495504]
[1768658085847,5.19112097,143.9,143.88,2.03495504]
[1768658086039,90.88464201,143.91,143.88,2.03495504]
[1768658086336,5.19097327,143.9,143.88,2.03495504]
[1768658086633,90.88464201,143.91,143.88,2.03495504]
[1768658086828,5.19081875,143.9,143.88,2.03495504]
[1768658087038,90.88464201,143.91,143.88,2.03495504]
[1768658087238,5.19081875,143.9,143.88,2.03495504]
[1768658087433,90.88464201,143.91,143.88,2.03495504]
[1768658087620,5.19100472,143.9,143.88,2.03495504]
[1768658087823,90.88464201,143.91,143.88,2.00495504]
[1768658088127,5.19100348,143.9,143.88,2.00495504]
[1768658088325,90.88464201,143.91,143.88,2.00495504]
[1768658088525,5.19099611,143.9,143.88,2.00495504]
[1768658088725,90.88464201,143.91,143.88,2.00495504]
[1768658088937,5.19099611,143.9,143.88,2.00495504]
[1768658089237,90.88464201,143.91,143.88,2.00495504]
[1768658089438,5.19103842,143.9,143.88,2.00495504]
[1768658089638,90.88464201,143.91,143.88,2.00495504]
[1768658089842,5.19103842,143.9,143.88,2.00495504]
[1768658090045,90.88464201,143.91,143.88,2.00495504]
[1768658090347,5.19103842,143.9,143.88,2.00495504]
[1768658090524,90.88464201,143.91,143.88,2.00495504]
[1768658090723,5.19113955,143.9,143.88,2.00495504]
[1768658090948,90.88464201,143.91,143.88,2.00495504]
[1768658091248,5.19113955,143.9,143.88,2.00495504]
[1768658091427,90.88464201,143.91,143.88,2.00495504]
[1768658091627,5.19129881,143.9,143.88,15.25495504]
[1768658091852,90.88464201,143.91,143.88,15.25495504]
[1768658092149,5.19126561,143.9,143.88,15.25495504]
[1768658092449,90.88464201,143.91,143.88,15.22495504]
[1768658092649,5.19152204,143.9,143.88,15.22495504]
[1768658092946,90.88464201,143.91,143.88,15.22495504]
[1768658093149,5.19152204,143.9,143.88,15.22495504]
[1768658093332,90.88464201,143.91,143.88,15.22495504]
[1768658093535,5.19180591,143.9,143.88,15.22495504]
[1768658093750,90.88464201,143.91,143.88,15.22495504]
[1768658094046,5.19180591,143.9,143.88,15.22495504]
[1768658094244,90.88464201,143.91,143.88,15.22495504]
[1768658094446,5.192158,143.9,143.88,15.19495504]
[1768658094628,90.88464201,143.91,143.88,15.19495504]
[1768658094831,5.192158,143.9,143.88,15.19495504]
[1768658095128,90.88464201,143.91,143.88,15.19495504]
[1768658095330,5.19251489,143.9,143.88,22.14515498]
[1768658095631,90.88464201,143.91,143.88,22.14515498]
[1768658095829,5.19257677,143.9,143.88,22.14515498]
[1768658096030,90.88464201,143.91,143.88,22.14515498]
[1768658096247,5.19257553,143.9,143.88,22.14515498]
[1768658096431,90.88464201,143.91,143.88,22.14515498]
[1768658096633,5.19298141,143.9,143.88,22.14515498]
[1768658096829,75.66464201,143.91,143.88,22.14515498]
[1768658097125,5.19298264,143.9,143.88,22.14515498]
[1768658097326,75.66464201,143.91,143.88,22.14515498]
[1768658097526,5.19336305,143.9,143.88,22.14515498]
[1768658097726,75.66464201,143.91,143.88,22.14515498]
[1768658098025,5.19336181,143.9,143.88,22.14515498]
[1768658098223,75.66464201,143.91,143.88,22.14515498]
[1768658098438,5.19380722,143.9,143.88,22.14515498]
[1768658098632,75.66464201,143.91,143.88,22.14515498]
[1768658098847,5.19380846,143.9,143.88,22.14515498]
[1768658099022,75.66464201,143.91,143.88,22.14515498]
[1768658099326,5.19380846,143.9,143.88,22.14515498]
[1768658099526,75.66464201,143.91,143.88,22.14515498]
[1768658099725,5.19431896,143.9,143.88,22.14515498]
[1768658099945,75.66464201,143.91,143.88,22.14515498]
[1768658100140,75.66464201,143.91,143.88,15.19495504]
[1768658100346,5.19491432,143.9,143.88,15.19495504]
[1768658100525,8.39357684,143.91,143.88,15.19495504]
[1768658101266,5.19508826,143.9,143.88,15.19495504]
[1768658101553,8.39357684,143.91,143.88,15.19495504]
[1768658101724,5.19508826,143.9,143.88,15.19495504]
[1768658101926,8.39357684,143.91,143.88,15.19495504]
[1768658102151,5.1950895,143.9,143.88,15.19495504]
[1768658102360,8.39357684,143.91,143.88,15.19495504]
[1768658102535,5.19563887,143.9,143.88,15.19495504]
[1768658102737,8.39357684,143.91,143.88,15.19495504]
[1768658102941,5.19563887,143.9,143.88,15.19495504]
[1768658103135,8.39357684,143.91,143.88,15.19495504]
[1768658103337,5.19564011,143.9,143.88,15.19495504]
[1768658103633,8.39357684,143.91,143.88,15.19495504]
[1768658103833,5.19629104,143.9,143.88,15.19495504]
[1768658104050,8.39357684,143.91,143.88,15.19495504]
[1768658104242,5.19629107,143.9,143.88,15.19495504]
[1768658104450,8.39357684,143.91,143.88,15.19495504]
[1768658104749,5.19705569,143.9,143.88,15.19495504]
[1768658104955,8.39357684,143.91,143.88,15.19495504]
[1768658105263,5.19705445,143.9,143.88,22.14518862]
[1768658105465,1.44444093,143.91,143.88,22.14518862]
[1768658105770,5.19784145,143.9,143.88,22.14518862]
[1768658105939,1.44444093,143.91,143.88,22.14518862]
[1768658106140,5.19784021,143.9,143.88,22.14518862]
[1768658106345,1.44444093,143.91,143.88,22.14518862]
[1768658106542,15.22,143.92,143.88,20.20023358]
[1768658106836,15.22,143.92,143.89,2.1481986]
[1768658110367,23.74622719,143.92,143.89,2.1481986]
[1768658111172,8.52622719,143.92,143.89,2.1481986]
[1768658114562,8.52622719,143.92,143.89,2.1181986]
[1768658118543,5.20412286,143.91,143.89,2.1181986]
[1768658118743,8.52622719,143.92,143.89,2.1181986]
[1768658119044,5.20412286,143.91,143.89,2.1181986]
[1768658119250,8.52622719,143.92,143.89,2.1181986]
[1768658119560,5.20403117,143.91,143.89,2.1181986]
[1768658119761,8.52622719,143.92,143.89,2.1181986]
[1768658119959,5.20403117,143.91,143.89,2.1181986]
[1768658120144,8.52622719,143.92,143.89,2.1181986]
[1768658120344,5.20404438,143.91,143.89,2.1181986]
[1768658120645,2.13949641,143.94,143.89,2.1481986]
[1768658120842,2.13949641,143.92,143.89,2.1481986]
[1768658121046,5.20391607,143.91,143.89,2.1481986]
[1768658121249,2.13949641,143.92,143.89,2.1481986]
[1768658121454,5.20404111,143.91,143.89,2.1481986]
[1768658121656,17.35949641,143.92,143.89,2.1481986]
[1768658121868,7.29396182,143.91,143.88,22.33390682]
[1768658122046,2.08991768,143.9,143.89,0.63]
[1768658122364,7.29404916,143.9,143.89,0.63]
[1768658122544,7.29404916,143.9,143.86,2.13380503]
[1768658122745,2.08991768,143.9,143.86,9.08495864]
[1768658122945,2.08991768,143.9,143.89,0.63]
[1768658123147,7.2944799,143.9,143.87,2.13380503]
[1768658123348,2.08991768,143.9,143.87,2.13380503]
[1768658125073,9.03930931,143.9,143.87,2.13380503]
[1768658126075,7.29453969,143.89,143.85,2.13380503]
[1768658126267,2.08991768,143.89,143.85,2.13380503]
[1768658127874,2.08991768,143.89,143.86,9.08500758]
[1768658131159,2.08991768,143.88,143.85,2.13380503]
[1768658131361,2.08991768,143.88,143.84,9.08566671]
[1768658131578,2.08991768,143.88,143.85,6.95161132]
[1768658136880,9.04023046,143.88,143.84,9.08576348]
[1768658138988,9.04023046,143.88,143.86,11.61]
[1768658146995,6.95031278,143.88,143.86,13.6178962]
[1768658147292,24.24173394,143.9,143.87,2.0078962]
[1768658147489,22.16973938,143.9,143.88,2.0078962]
[1768658148395,23.24173394,143.9,143.88,2.5578962]
[1768658148896,6.94878743,143.91,143.89,2.0078962]
[1768658149095,6.94878743,143.91,143.89,1.9778962]
[1768658149475,6.94878743,143.91,143.89,2.5278962]
[1768658151099,91.51142691,143.92,143.89,2.5278962]
[1768658151270,24.24036174,143.92,143.89,9.47761338]
[1768658151477,17.29199456,143.92,143.89,9.47761338]
[1768658161203,24.24031942,143.92,143.89,2.5278962]
[1768658167908,17.29199456,143.92,143.89,9.47760194]
[1768658168108,9.06935555,143.93,143.9,2.0044439]
[1768658168412,9.06935555,143.93,143.9,13.0844439]
[1768658170399,24.28871231,143.94,143.91,2.0044439]
[1768658173514,9.06871231,143.94,143.91,2.0044439]
[1768658180503,2.12134787,143.94,143.9,18.02906235]
[1768658180925,2.12134787,143.94,143.9,20.03350625]
[1768658184319,9.06883926,143.94,143.91,2.09681095]
[1768658186823,9.06883926,143.94,143.91,2.06681095]
[1768658192805,8.89722106,143.95,143.92,1.93924699]
[1768658193007,24.11722106,143.95,143.92,1.93924699]
[1768658196139,1.95023813,143.94,143.91,6.94860674]
[1768658196306,1.95023813,143.94,143.91,8.88785373]
[1768658198416,1.95023813,143.94,143.92,1.93924699]
[1768658198618,24.11722106,143.95,143.92,1.93924699]
[1768658199632,24.11722106,143.95,143.92,1.90924699]
[1768658200732,15.22,143.95,143.92,6.94807646]
[1768658201628,76.16772438,143.96,143.92,8.88732345]
[1768658201804,5.19842742,143.95,143.92,8.88732345]
[1768658202006,76.16772438,143.96,143.92,8.88732345]
[1768658202208,5.19842866,143.95,143.93,1.93924699]
[1768658202423,67.27106517,143.96,143.93,1.93924699]
[1768658205713,67.27106517,143.96,143.94,1.93924699]
[1768658205918,24.11619693,143.97,143.94,1.84924699]
[1768658207619,8.89619693,143.97,143.94,1.84924699]
[1768658213856,0.1,143.98,143.91,24.32075602]
[1768658215221,7.04540981,143.98,143.91,24.32075602]
[1768658215443,2.09684813,143.97,143.91,24.32075602]
[1768658216838,9.04275934,143.97,143.91,24.32075602]
[1768658221731,5.19481973,143.96,143.91,24.32075602]
[1768658221939,2.09684813,143.95,143.91,24.32075602]
[1768658223548,2.09684813,143.96,143.91,24.32075602]
[1768658235173,15.32,143.98,143.9,18.02907668]
[1768658235174,2.09684813,143.95,143.9,18.02907668]
[1768658236457,2.09684813,143.95,143.9,35.40225249]
[1768658251494,2.06684814,143.95,143.9,35.40225249]
[1768658253703,1.80515282,143.96,143.9,35.40225249]
[1768658254198,1.80515282,143.96,143.9,56.24644217]
[1768658256581,8.75104432,143.97,143.9,56.24644217]
[1768658257699,1.80515282,143.97,143.92,6.94830461]
[1768658258589,1.80515282,143.97,143.92,24.31906614]
[1768658269899,1.80515282,143.96,143.92,6.94830461]
[1768658270089,1.80515282,143.96,143.91,6.94863598]
[1768658273289,1.80515282,143.96,143.91,24.32060457]
[1768658282244,1.87103268,143.95,143.91,24.32060457]
[1768658291518,15.32,143.98,143.92,1.33061645]
[1768658292427,0.1,143.98,143.92,1.33061645]
[1768658292821,0.1,143.98,143.93,1.32599203]
[1768658293439,1.87103268,143.97,143.94,24.31568708]
[1768658293616,1.87103268,143.97,143.94,25.63710781]
[1768658293814,0.1,143.98,143.94,25.63710781]
[1768658295940,1.97103268,143.98,143.94,25.63710781]
[1768658296826,1.97103268,143.98,143.94,17.36834792]
[1768658297033,1.97103268,143.98,143.95,1.8092669]
[1768658299238,1.97103268,143.98,143.96,6.94637399]
[1768658314344,1.97103268,143.98,143.95,6.94679902]
[1768658315351,1.97103268,143.98,143.95,8.61334751]
[1768658320867,1.97103268,143.98,143.95,1.66654849]
[1768658322569,1.97103268,143.98,143.95,8.6133868]
[1768658329568,1.97103268,143.98,143.93,19.03548002]
[1768658329769,1.97103268,143.98,143.94,1.66654849]
[1768658333373,1.66528087,143.97,143.94,1.66654849]
[1768658334474,1.66528087,143.97,143.94,8.61341791]
[1768658341581,1.66528087,143.97,143.94,6.94686942]
[1768658342175,1.66528087,143.97,143.94,8.63952609]
[1768658349502,1.76528087,143.98,143.95,1.69265667]
[1768658350198,0.1,143.98,143.95,1.69265667]
[1768658351586,1e-08,143.98,143.97,1.69265667]
[1768658356820,1.66528088,143.98,143.95,1.69265667]
[1768658361301,1.66528088,143.98,143.95,8.63944795]
[1768658363034,8.61092807,143.98,143.95,1.69265667]
[1768658363212,1.66528088,143.98,143.95,1.69265667]
[1768658363407,1.66528088,143.98,143.95,8.63941822]
[1768658373050,1e-08,143.98,143.96,1.6382659]
[1768658383926,1.50479148,143.98,143.96,1.6382659]
[1768658384142,1.47479149,143.98,143.96,1.6382659]
[1768658394157,6.76770876,143.97,143.94,8.45088288]
[1768658394361,5.20437584,143.96,143.92,8.4515481]
[1768658394558,5.20450005,143.95,143.92,8.4515481]
[1768658394750,22.14562057,143.98,143.92,8.4515481]
[1768658394952,5.20457029,143.97,143.92,8.4515481]
[1768658395262,5.20457029,143.96,143.92,8.4515481]
[1768658395456,39.50914328,143.98,143.92,8.4515481]
[1768658395638,6.94637399,143.96,143.92,8.4515481]
[1768658396255,1.56399373,143.95,143.92,8.4515481]
[1768658396762,1.50399374,143.95,143.92,8.4515481]
[1768658400865,1.56399373,143.94,143.91,8.45222263]
[1768658401068,1.50399374,143.94,143.91,8.45222263]
[1768658404266,8.45140601,143.94,143.91,1.50355769]
[1768658404567,5.19424608,143.93,143.88,8.45338307]
[1768658404871,1.56399373,143.91,143.87,8.45412891]
[1768658405167,1.52382389,143.91,143.88,6.9502318]
[1768658405968,1.52382389,143.91,143.88,8.45378949]
[1768658411285,1.4938239,143.91,143.88,8.45378949]
[1768658414175,8.44295761,143.91,143.88,1.50355769]
[1768658417971,1.56399373,143.9,143.88,1.50355769]
[1768658418997,8.51335388,143.9,143.87,1.50355769]
[1768658419183,1.56399373,143.89,143.87,1.50355769]